[Event "5th Sharjah Masters 2022"]
[Site "Sharjah"]
[Date "2022.05.25"]
[Round "5.35"]
[White "Gunina, Valentina"]
[Black "Farahat, Ali"]
[Result "1-0"]
[ECO "D45"]
[WhiteElo "2471"]
[BlackElo "2381"]
[Annotator "TA"]
[PlyCount "81"]
[EventDate "2022.05.21"]
[EventType "swiss"]
[EventCountry "UAE"]
[SourceTitle "playchess.com"]
[Source "ChessBase"]
[SourceQuality "1"]
[TimeControl "5400+30"]

{[%evp 18,81,3,0,9,9,17,-4,-6,-24,0,-17,-14,-14,-8,-54,0,0,0,0,0,-136,-71,-541,-512,-581,297,289,287,292,330,313,308,286,302,298,371,179,261,269,260,267,282,71,363,366,643,600,599,479,473,464,464,388,386,386,356,353,29978,29979,29979,29980,5506,235,6241,5335]} 1. d4 {[%emt 0:00:04]} d5 {[%emt 0:00:04]} 2. c4 {[%emt 0:00:11]} c6 {[%emt 0:00:06]} 3. Nf3 {[%emt 0:00:04]} Nf6 {[%emt 0:00:12]} 4. Nc3 {[%emt 0:00:06]} e6 {[%emt 0:00:11]} 5. e3 {[%emt 0:00:07]} Nbd7 {[%emt 0:00:23]} 6. Be2 {[%emt 0:00:07]} Bd6 {[%emt 0:02:04]} 7. O-O {[%emt 0:00:43]} O-O {[%emt 0:00:17]} 8. b3 {[%emt 0:00:57]} b6 {[%emt 0:02:58]} 9. Bb2 {[%emt 0:00:33]} Bb7 {[%emt 0:00:08]} 10. Rc1 {[%emt 0:00:12]} Qe7 {[%emt 0:01:16] 10...Qe7 is better than 10...Rc8. D45: Semi-Slav: 5 e3.} 11. Qc2 {[%emt 0:01:37]} Rfe8 {[%emt 0:01:24]} 12. cxd5 {[%emt 0:03:08]} exd5 {[%emt 0:02:45] [#] The position is equal.} 13. Qf5 $146 {[%emt 0:00:06]} ({Predecessor:} 13. Rfd1 a5 14. Bf1 b5 15. a4 b4 16. Ne2 Rac8 17. Ng3 g6 18. Re1 h5 19. Ba1 {1-0 (45) Musitani,C (2354)-Henri,S (2359) ICCF email 2015}) 13... a6 {[%emt 0:02:52]} 14. Nd2 {[%emt 0:04:08]} Nf8 {[%emt 0:03:17]} 15. Rfe1 {[%emt 0:01:31]} Ne6 {[%emt 0:07:50]} 16. Nf1 {[%emt 0:10:18]} (16. Nf3 $11) 16... c5 {[%emt 0:08:47]} (16... g6 $15 17. Qc2 Rac8) 17. dxc5 $1 $11 {[%emt 0:02:56]} bxc5 {[%emt 0:01:51]} 18. Na4 {[%emt 0:00:30]} d4 {[%emt 0:16:13]} 19. Qb1 {[%emt 0:04:17]} (19. Bc4 $1 $11) 19... Nd5 {[%emt 0:03:53]} (19... Rad8 $142 {White must now prevent ...dxe3.} 20. Bc4 Nd5) 20. exd4 {[%emt 0:01:15][%mdl 8192]} (20. Bf3 $17 {is tougher.}) 20... Ndf4 $19 {[%emt 0:02:10]} 21. dxc5 {[%emt 0:02:57] [#]} Bc7 {[%emt 0:10:15][%mdl 8192]} (21... Bxg2 $1 $19 {and all is fine. ( -> ...Nh3+)} 22. Rc3 (22. cxd6 Nh3+ 23. Kxg2 Nef4+ 24. Kh1 Nxf2+ 25. Kg1 N2h3+ 26. Kh1 Qb7+) (22. Bg4 Qh4) 22... Nd4) 22. c6 $18 {[%emt 0:00:22]} Qg5 {[%emt 0:02:16][%csl Gf4][%cal Rg5g2]} 23. Ng3 $1 {[%emt 0:00:20]} (23. Ne3 Nxe2+ 24. Rxe2 Qh5 $11) 23... Bc8 {[%emt 0:00:41][%cal Of4g2]} 24. Bf3 {[%emt 0:01:27]} Rd8 {[%emt 0:01:29]} 25. Rcd1 {[%emt 0:00:36] Inhibits Nd3.} Rxd1 {[%emt 0:01:14]} 26. Qxd1 {[%emt 0:00:29]} h5 {[%emt 0:00:27]} 27. Nxh5 {[%emt 0:01:34]} (27. Nc3 $142) 27... Nxh5 {[%emt 0:00:58]} (27... Nh3+ $142 28. Kf1 a5) 28. Bxh5 {[%emt 0:00:05]} Nf4 {[%emt 0:00:18][%csl Gf4][%cal Rg5g2]} 29. Bf3 {[%emt 0:02:05]} (29. Re8+ Kh7 30. Bf3 Qg6) 29... Bf5 {[%emt 0:00:49] Hoping for ...Rd8.} 30. Nc5 $2 {[%emt 0:02:34]} (30. Be5 $18 Rd8 31. Bxc7 $1 Rxd1 32. Rxd1) 30... Nh3+ $2 {[%emt 0:01:16][%mdl 8192]} (30... Rd8 $16 {is a better defense.} 31. Bd4 Nh3+ 32. Kf1 Nxf2) 31. Kf1 {[%emt 0:00:08]} Bxh2 $2 {[%emt 0:00:14]} (31... Rd8) 32. Ne4 {[%emt 0:01:23]} Qg6 {[%emt 0:01:27]} 33. Bh5 {[%emt 0:01:19]} Qxc6 {[%emt 0:00:25]} 34. Qd4 {[%emt 0:01:41][%csl Gb2][%cal Rd4g7]} f6 {[%emt 0:02:24]} 35. Nxf6+ {[%emt 0:03:08]} (35. gxh3 Be5 36. Qd1 Bxb2 $16) 35... gxf6 {[%emt 0:01:45] [#]} 36. Bf3 $1 {[%emt 0:00:05][%cal Bh5f3,Bf3e2,Be2c4,Bc4f7][%mdl 96] Skewer. Really sharp!} Qb5+ {[%emt 0:01:36]} 37. Be2 {[%emt 0:00:10]} Qc6 {[%emt 0:00:19]} (37... Be5 $18 38. Bxb5 Bxd4 39. Bc4+ (39. Bxd4 axb5 40. gxh3 Bxh3+ 41. Kg1 Rxa2 $11) 39... Kg7) 38. Bc4+ {[%emt 0:00:07]} ({Less strong is} 38. Qxf6 Qxf6 39. Bxf6 Kf7 $11) 38... Kg7 {[%emt 0:05:17]} 39. Re7+ {[%emt 0:00:49]} ({Inferior is} 39. Qd5 Qxd5 40. Re7+ Kf8 41. Bxd5 Rd8 $17) 39... Kg6 {[%emt 0:00:05]} 40. gxh3 $2 {[%emt 0:04:13]} (40. Qh4 {Threatening mate with Qh7+.} Qxc4+ 41. bxc4) 40... Be5 $2 {[%emt 0:01:02]} (40... Qd6 41. Be6 Qxd4 42. Bxd4 Bf4 43. Bxf5+ Kxf5) 41. Bf7+ {[%emt 0:00:39] Weighted Error Value: White=0.64/Black=0.72} 1-0

[Event "5th Sharjah Masters 2022"]
[Site "Sharjah"]
[Date "2022.05.25"]
[Round "5.36"]
[White "Begmuratov, Khumoyun"]
[Black "Nikolov, Momchil"]
[Result "0-1"]
[ECO "C80"]
[WhiteElo "2384"]
[BlackElo "2454"]
[Annotator "TA"]
[PlyCount "98"]
[EventDate "2022.05.21"]
[EventType "swiss"]
[EventCountry "UAE"]
[SourceTitle "playchess.com"]
[Source "ChessBase"]
[SourceQuality "1"]
[TimeControl "5400+30"]

{[%evp 17,98,6,14,8,35,30,16,5,42,11,10,30,68,33,29,-7,-5,-34,-11,-58,-78,-87,-75,-65,-58,-82,9,-83,-81,-152,-140,-143,-140,-145,-149,-325,-318,-303,-329,-304,-328,-327,-312,-331,-333,-340,-333,-375,-441,-428,-416,-349,-333,-1023,-1020,-784,-692,-2344,-2344,-12391,-12707,-12837,-2676,-12833,-11265,-5397,-2240,-29976,-29974,-29976,-29977,-29979,-29980,-29980,-29980,-29985,-29986,-29988,-29989,-29989,-29990,-29993,-29994]} 1. e4 {[%emt 0:00:05]} e5 {[%emt 0:00:12]} 2. Nf3 {[%emt 0:00:23]} Nc6 {[%emt 0:00:10]} 3. Bb5 {[%emt 0:00:27][%cal Bf1b5,Bb5a4,Ba4b3][%mdl 32]} a6 {[%emt 0:00:11]} 4. Ba4 {[%emt 0:00:14]} Nf6 {[%emt 0:00:12]} 5. O-O {[%emt 0:00:14]} Nxe4 {[%emt 0:00:16]} 6. d4 {[%emt 0:01:24]} b5 {[%emt 0:00:17]} 7. Bb3 {[%emt 0:00:14]} d5 {[%emt 0:00:09]} 8. dxe5 {[%emt 0:00:33]} Be6 {[%emt 0:00:11]} 9. a4 {[%emt 0:02:26]} b4 {[%emt 0:05:18]} 10. Nbd2 {[%emt 0:02:09] 10.a5 is not played anymore. C80: Open Ruy Lopez: Sidelines and 9 Nbd2.} Nc5 {[%emt 0:06:23]} 11. c3 {[%emt 0:01:45]} Be7 {[%emt 0:01:58]} 12. Nd4 {[%emt 0:18:13] The position is equal.} Qd7 {[%emt 0:28:25] [#]} 13. Bc2 $146 {[%emt 0:13:52]} ({Predecessor:} 13. f4 Nxd4 14. cxd4 Nxb3 15. Nxb3 O-O 16. Be3 a5 17. h3 f6 18. Qe2 Rac8 19. g4 {0-1 (46) Kosteniuk,A (2471)-Oparin,G (2652) Chess.com INT 2020}) 13... bxc3 {[%emt 0:09:13]} 14. bxc3 {[%emt 0:00:16]} O-O {[%emt 0:01:49]} 15. Qe2 {[%emt 0:13:51]} f6 {[%emt 0:05:01]} 16. exf6 {[%emt 0:21:59]} Nxd4 {[%emt 0:04:15]} 17. cxd4 {[%emt 0:00:54]} Bxf6 {[%emt 0:00:09] Hoping for ...Bg4.} 18. Ba3 {[%emt 0:03:39]} (18. Qh5 $2 g6 19. Qd1 Bxd4 $17) (18. Nf3 $11 {might be stronger.} Bg4 19. Be3) 18... Bxd4 $15 {[%emt 0:02:58]} 19. Rae1 {[%emt 0:03:15] Black must now prevent Bxc5.} Bg4 {[%emt 0:09:32]} 20. Qe7 {[%emt 0:01:11]} Qxe7 {[%emt 0:02:37] Really sharp! Active counter play!} 21. Rxe7 {[%emt 0:00:01]} Rac8 {[%emt 0:06:26]} (21... c6 $17 22. h3 Bh5) 22. h3 {[%emt 0:11:35] [#]} (22. Nb3 $1 $11 {keeps the balance.} Nxb3 23. Bxb3) 22... Bh5 $1 $36 {[%emt 0:00:13][%mdl 2048] Keeping White busy.} 23. Kh2 {[%emt 0:00:39]} (23. Ree1 $142) 23... Rfe8 {[%emt 0:06:04]} ({Inferior is} 23... Rxf2 24. Rxf2 Bxf2 25. Re5 $15) 24. Rxe8+ {[%emt 0:02:09]} Rxe8 {[%emt 0:00:07][%cal Bc8e8,Be8e2,Be2a2][%mdl 32]} 25. g4 {[%emt 0:00:45] Threatens to win with Nf3.} Re2 {[%emt 0:01:42][%csl LRd2,LRf2]} 26. Nf3 {[%emt 0:00:31] [#] This move loses the game for White.} (26. Bxc5 $17 Bxc5 27. gxh5) 26... Bxf2 $1 $19 {[%emt 0:00:37]} 27. Bd1 {[%emt 0:00:00]} Ra2 {[%emt 0:00:15] ...Be3+ is the strong threat.} 28. Bxc5 {[%emt 0:00:48]} Bxc5+ {[%emt 0:00:12]} 29. Kh1 {[%emt 0:00:09]} Bf7 {[%emt 0:02:07]} 30. Ng5 {[%emt 0:00:20]} Rf2 {[%emt 0:03:09]} 31. Rxf2 {[%emt 0:00:23]} Bxf2 {[%emt 0:00:02][%mdl 4096] Endgame KBB-KBN} 32. Kg2 {[%emt 0:01:23]} Be3 {[%emt 0:00:26]} 33. Nxf7 {[%emt 0:00:02]} Kxf7 {[%emt 0:00:04] KB-KB} 34. Kf3 {[%emt 0:00:25]} Bd2 {[%emt 0:00:32]} 35. Be2 $2 {[%emt 0:00:32]} (35. Bc2) 35... a5 {[%emt 0:00:11]} 36. Bb5 {[%emt 0:00:44]} Ke6 {[%emt 0:00:17]} 37. h4 {[%emt 0:00:29]} Be1 {[%emt 0:00:26]} 38. Bd3 {[%emt 0:00:27]} h6 {[%emt 0:00:18]} 39. h5 {[%emt 0:00:03]} c5 {[%emt 0:00:18]} (39... Bh4 $142 40. Ke3 c5) 40. Bh7 {[%emt 0:00:22]} c4 {[%emt 0:00:30] ( -> ...Bd2)} 41. Bg8+ {[%emt 0:00:32]} Ke5 {[%emt 0:00:37]} (41... Kd6 $142 42. Ke2 Bc3) 42. Ke2 {[%emt 0:00:04]} Bh4 {[%emt 0:00:14] Black mates.} 43. Kd2 {[%emt 0:00:11]} Kd4 {[%emt 0:00:08]} 44. Kc2 {[%emt 0:00:05]} Kc5 {[%emt 0:00:09]} 45. Kd2 {[%emt 0:00:23]} Bg5+ {[%emt 0:00:10]} 46. Kd1 {[%emt 0:00:04]} d4 {[%emt 0:00:09][%cal Bd5d4,Bd4d3][%mdl 32]} 47. Bf7 {[%emt 0:00:04]} d3 {[%emt 0:00:12]} 48. Bg6 {[%emt 0:00:03]} Kd4 {[%emt 0:00:06]} 49. Bf5 {[%emt 0:00:01]} c3 {[%emt 0:00:11] Weighted Error Value: White=0.98/Black=0.38} 0-1

[Event "5th Sharjah Masters 2022"]
[Site "Sharjah"]
[Date "2022.05.25"]
[Round "5.37"]
[White "Assaubayeva, Bibisara"]
[Black "Vogt, Lothar"]
[Result "1/2-1/2"]
[ECO "E71"]
[WhiteElo "2439"]
[BlackElo "2365"]
[Annotator "TA"]
[PlyCount "61"]
[EventDate "2022.05.21"]
[EventType "swiss"]
[EventCountry "UAE"]
[SourceTitle "playchess.com"]
[Source "ChessBase"]
[SourceQuality "1"]
[TimeControl "5400+30"]

{[%evp 10,61,45,18,43,32,38,16,32,30,37,27,55,54,70,91,107,94,86,83,93,89,104,93,110,109,106,118,120,61,57,0,0,0,19,16,27,21,14,39,54,5,62,45,50,44,57,-79,-30,-27,-35,-34,-35,-42]} 1. d4 {[%emt 0:00:04]} Nf6 {[%emt 0:00:04]} 2. c4 {[%emt 0:00:04]} g6 {[%emt 0:00:08]} 3. Nc3 {[%emt 0:00:03]} Bg7 {[%emt 0:00:07]} 4. e4 {[%emt 0:00:04]} d6 {[%emt 0:00:09]} 5. h3 {[%emt 0:00:03]} O-O {[%emt 0:00:10]} 6. Be3 {[%emt 0:00:02]} Nc6 {[%emt 0:00:32] E71: King's Indian: 4 e4 d6 5 h3.} 7. d5 {[%emt 0:04:14]} Ne5 {[%emt 0:00:09]} 8. f4 {[%emt 0:01:24]} Ned7 {[%emt 0:00:04] The position is equal.} 9. g4 {[%emt 0:04:17]} c6 {[%emt 0:00:04]} 10. Nge2 {[%emt 0:01:51]} cxd5 {[%emt 0:01:08]} 11. cxd5 {[%emt 0:00:20] [#]} b5 $146 {[%emt 0:04:17]} ({Predecessor:} 11... Nb6 12. Ng3 e6 13. dxe6 fxe6 14. a4 d5 15. a5 Nbd7 16. e5 Nxe5 17. fxe5 Nd7 {1-0 (26) Bluebaum,M (2672)-Parvanyan,A (2451) Bad Wiessee 2020}) 12. Nd4 {[%emt 0:03:32]} a6 {[%emt 0:04:31]} 13. Bg2 {[%emt 0:08:12] White is more active.} Bb7 {[%emt 0:04:44]} 14. O-O {[%emt 0:11:30]} Rc8 {[%emt 0:03:59] [#] Against Nc6} 15. Rc1 $1 {[%emt 0:10:54]} Nb6 {[%emt 0:13:42]} 16. b3 {[%emt 0:04:30][%cal Od4c6]} Nfd7 {[%emt 0:03:04]} 17. Nce2 {[%emt 0:05:10]} Nc5 {[%emt 0:02:30]} 18. Nc6 {[%emt 0:06:08]} Qd7 {[%emt 0:05:21]} 19. Ned4 {[%emt 0:09:14]} ({Don't play} 19. Bxc5 $6 dxc5 20. Rxc5 Bxc6 21. Rxc6 (21. dxc6 Qa7 $15) 21... Rxc6 22. dxc6 Qxc6 $14) (19. Na5 $16) 19... e6 $14 {[%emt 0:00:37]} 20. Na5 {[%emt 0:02:25]} exd5 {[%emt 0:07:33]} 21. Nxb7 {[%emt 0:00:37]} Qxb7 {[%emt 0:00:59]} 22. exd5 {[%emt 0:00:19]} Rfe8 {[%emt 0:00:56]} 23. Bf2 {[%emt 0:11:33]} Ne4 {[%emt 0:01:29]} (23... Nxd5 {with more complications.} 24. Nxb5 Qxb5 25. Bxd5 Nd3) 24. Rxc8 {[%emt 0:00:28]} Qxc8 {[%emt 0:01:41]} 25. Nc6 {[%emt 0:01:26]} (25. Bxe4 $14 Rxe4 26. Qd3) 25... Nd7 {[%emt 0:11:30]} (25... Nxf2 $11 26. Rxf2 Nd7) 26. Qc2 {[%emt 0:02:56] aiming for Ne7+.} Nc3 $1 {[%emt 0:03:11]} 27. Bf3 {[%emt 0:04:09]} Nb8 {[%emt 0:04:54]} 28. Re1 {[%emt 0:04:07] [#]} (28. Na7 $1 $14 {stays ahead.} Qd7 29. Qd3) 28... Rxe1+ {[%emt 0:04:29]} (28... Nxc6 $1 $17 29. dxc6 d5) 29. Bxe1 $11 {[%emt 0:00:01] Hoping for Ne7+. A strong pair of Bishops.} Nxc6 {[%emt 0:00:19]} 30. dxc6 {[%emt 0:00:02] [#]} d5 $1 {[%emt 0:02:30]} 31. Bxc3 {[%emt 0:01:01] Weighted Error Value: White=0.16 (very precise) /Black=0.13 (very precise)} 1/2-1/2

[Event "5th Sharjah Masters 2022"]
[Site "Sharjah"]
[Date "2022.05.25"]
[Round "5.38"]
[White "Baenziger, Fabian"]
[Black "Al Hosani, Omran"]
[Result "1-0"]
[ECO "E11"]
[WhiteElo "2430"]
[BlackElo "2191"]
[Annotator "TA"]
[PlyCount "69"]
[EventDate "2022.05.21"]
[EventType "swiss"]
[EventCountry "UAE"]
[SourceTitle "playchess.com"]
[Source "ChessBase"]
[SourceQuality "1"]
[TimeControl "5400+30"]

{[%evp 11,69,14,19,2,22,29,39,0,27,22,53,38,38,33,30,26,25,31,32,0,72,72,150,127,98,75,118,80,80,56,311,305,300,301,300,274,283,270,277,270,268,269,275,261,257,237,388,385,366,373,399,402,483,476,487,465,579,557,548,532]} 1. d4 {[%emt 0:00:03]} Nf6 {[%emt 0:02:21]} 2. c4 {[%emt 0:00:06]} e6 {[%emt 0:00:09]} 3. Nf3 {[%emt 0:01:50]} Bb4+ {[%emt 0:04:35]} 4. Bd2 {[%emt 0:00:14]} a5 {[%emt 0:00:10]} 5. g3 {[%emt 0:01:55]} d5 {[%emt 0:02:26]} 6. Bg2 {[%emt 0:00:54]} O-O {[%emt 0:00:20]} 7. Qc1 {[%emt 0:00:57] E11: Bogo-Indian.} c5 {[%emt 0:10:17] 7...Nbd7 is the recent fashion.} 8. dxc5 {[%emt 0:10:22]} d4 {[%emt 0:00:08] [#]} 9. O-O $146 {[%emt 0:01:42] White is slightly better.} ({Predecessor:} 9. Bxb4 axb4 10. e3 d3 11. Ne5 Ra5 12. Qd2 Rxc5 13. Nxd3 Rxc4 14. b3 Rc7 15. Nxb4 {½-½ (21) Ren,X (2157)-Ding,Y (2426) China 2016}) 9... Bxc5 {[%emt 0:00:31]} 10. e3 {[%emt 0:01:21]} Nc6 {[%emt 0:01:59]} 11. exd4 {[%emt 0:01:26]} Nxd4 {[%emt 0:03:23]} 12. Nxd4 {[%emt 0:01:30]} Bxd4 {[%emt 0:00:08]} 13. Be3 {[%emt 0:04:51]} e5 {[%emt 0:00:32]} 14. Nc3 {[%emt 0:06:57]} Be6 {[%emt 0:00:42]} 15. Rd1 {[%emt 0:05:46]} Bg4 {[%emt 0:06:41]} (15... Bxc4 16. Bxd4 exd4 17. Qf4 $14) (15... Rc8 $11 {keeps the balance.}) 16. Bxd4 $16 {[%emt 0:06:15]} Bxd1 {[%emt 0:01:36]} (16... exd4 $142 17. f3 Be6) 17. Bxe5 {[%emt 0:15:15] A strong pair of Bishops.} Bh5 {[%emt 0:06:25]} 18. Qg5 {[%emt 0:04:58] Hoping for Ne4.} Bg6 {[%emt 0:00:55] Prevents Ne4.} 19. Rd1 {[%emt 0:04:20]} Qb6 {[%emt 0:03:43] [#]} 20. c5 $1 {[%emt 0:14:56][%mdl 64] Deflection. White is more active.} Qxc5 {[%emt 0:03:49][%mdl 8192] This costs Black the game.} (20... Qxb2 $2 21. Nd5 (21. Bxf6 gxf6 22. Qxf6 Rac8 $15) 21... Qe2 22. Nxf6+ (22. Nc3 Qc2 $11) 22... Kh8 {[#]} 23. Rc1 $1 $18) ({Better is} 20... Qb4 $1 $14) 21. Bxf6 $18 {[%emt 0:00:14][%cal Be5f6,Bf6g5,Bg5e3][%mdl 96] Discovered Attack} ({Inferior is} 21. Bxb7 Ra7 22. Bf3 Nd7 $15) 21... Qxg5 {[%emt 0:00:53]} 22. Bxg5 {[%emt 0:00:03]} h6 {[%emt 0:01:27]} 23. Be3 {[%emt 0:05:05]} ({Stronger than} 23. Bxb7 Ra7 $15) 23... Rfd8 {[%emt 0:00:26]} 24. Re1 {[%emt 0:01:33]} Rd7 {[%emt 0:00:13]} 25. Bh3 {[%emt 0:02:21]} Rdd8 {[%emt 0:01:19]} 26. a4 {[%emt 0:00:20]} Ra6 {[%emt 0:00:27]} 27. Bf1 {[%emt 0:01:35]} Re6 {[%emt 0:00:58]} 28. Rc1 {[%emt 0:00:15]} Rc8 $2 {[%emt 0:00:12]} (28... Rc6 {was necessary.} 29. Bg2 Rcc8) 29. Bh3 {[%emt 0:00:44]} f5 {[%emt 0:00:11]} 30. Rd1 {[%emt 0:00:07] Inhibits Rd6.} Re7 {[%emt 0:02:09]} 31. Rd5 {[%emt 0:00:40][%csl LRa5,LRf5]} b6 {[%emt 0:00:29]} 32. Rd6 {[%emt 0:01:38] White is clearly winning.} Kh7 {[%emt 0:00:01]} 33. Nd5 {[%emt 0:02:04]} Re5 {[%emt 0:01:41]} 34. Nf4 {[%emt 0:00:05]} Bf7 {[%emt 0:00:05]} 35. Nd3 {[%emt 0:00:08] Weighted Error Value: White=0.10 (very precise) /Black=0.37} 1-0

[Event "5th Sharjah Masters 2022"]
[Site "Sharjah"]
[Date "2022.05.25"]
[Round "5.39"]
[White "Ammar, Sedrani"]
[Black "Mammadzada, Gunay"]
[Result "0-1"]
[ECO "B13"]
[WhiteElo "2255"]
[BlackElo "2454"]
[Annotator "TA"]
[PlyCount "54"]
[EventDate "2022.05.21"]
[EventType "swiss"]
[EventCountry "UAE"]
[SourceTitle "playchess.com"]
[Source "ChessBase"]
[SourceQuality "1"]
[TimeControl "5400+30"]

{[%evp 9,54,-14,4,-7,-2,-1,0,0,0,0,17,14,10,0,0,0,0,0,4,-46,-45,-60,-50,-70,-64,-164,-66,-69,-77,-108,-117,-140,-145,-212,-208,-491,-482,-710,-686,-954,-958,-919,-904,-2268,-744,-700,-665]} 1. d4 {[%emt 0:00:02]} d5 {[%emt 0:00:05]} 2. Bf4 {[%emt 0:00:12]} Nf6 {[%emt 0:00:18]} 3. e3 {[%emt 0:00:08]} c5 {[%emt 0:00:48]} 4. Nc3 {[%emt 0:02:43]} cxd4 {[%emt 0:03:16]} 5. exd4 {[%emt 0:00:20]} Bg4 {[%emt 0:02:19]} 6. Be2 {[%emt 0:02:09] B13: Caro-Kann: Exchange Variation and Panov-Botvinnik Attack.} Bxe2 {[%emt 0:00:25]} 7. Ncxe2 {[%emt 0:00:37]} Nc6 {[%emt 0:02:24]} 8. c3 {[%emt 0:00:20] The position is equal.} e6 {[%emt 0:01:17]} 9. Nf3 {[%emt 0:00:08] [#]} Nd7 $146 {[%emt 0:10:07]} ({Predecessor:} 9... Be7 10. O-O O-O 11. a4 a6 12. Ne1 Rc8 13. Nd3 Ne4 14. Ng3 Nd6 15. Qg4 g6 {0-1 (33) Zhalmakhanov,R (2414)-Liang,A (2590) Chess.com INT 2021}) 10. O-O {[%emt 0:01:53]} Be7 {[%emt 0:00:13]} 11. a4 {[%emt 0:04:28]} O-O {[%emt 0:02:26]} 12. Nc1 {[%emt 0:01:24]} Rc8 {[%emt 0:05:23]} 13. Nd3 {[%emt 0:00:48]} Na5 {[%emt 0:00:30]} 14. b4 {[%emt 0:31:07]} (14. Re1 $11) 14... Nc4 $15 {[%emt 0:03:03]} 15. a5 {[%emt 0:00:34]} Nf6 {[%emt 0:05:14]} 16. Qb3 {[%emt 0:07:16]} Ne4 {[%emt 0:03:43]} 17. Rfc1 {[%emt 0:00:20] [#]} (17. Nc5 $15) 17... b6 {[%emt 0:11:38]} (17... g5 $1 $19 {[%cal Rg5f4]} 18. Be5 h5) 18. axb6 {[%emt 0:05:18]} axb6 {[%emt 0:00:22]} 19. Ra7 {[%emt 0:00:44]} Bd6 {[%emt 0:04:16]} 20. Nde5 {[%emt 0:39:59]} Qf6 {[%emt 0:05:30]} 21. g3 {[%emt 0:00:00]} (21. Bg3 $17) 21... Qf5 $19 {[%emt 0:00:40] ...g5 is the strong threat.} 22. Kg2 $2 {[%emt 0:00:00] [#]} (22. Qc2 {was called for.}) 22... g5 {[%emt 0:00:54] Black is clearly winning.} 23. Be3 {[%emt 0:00:00]} (23. Nxg5 $142 Bxe5 24. dxe5 Nxg5 25. Bxg5 Qxg5 26. Qd1) 23... Bxe5 {[%emt 0:01:08]} 24. Nxe5 {[%emt 0:00:00]} Nxe3+ 25. fxe3 {[%emt 0:00:00]} Qf2+ {[%emt 0:00:55]} 26. Kh3 {[%emt 0:00:00]} f6 (26... f5 $142 27. Qd1 g4+ 28. Nxg4 Ng5+ 29. Kh4 Nf3+ 30. Qxf3 Qxf3 31. Nh6+ Kh8) 27. Ng4 {[%emt 0:03:30]} Qf5 {[%emt 0:37:06] Weighted Error Value: White=0.82/Black=0.26 (precise)} 0-1